[Event "Titled Tuesday Blitz May 03 Late 2022"]
[White "Vusatiuk, Vladimir"]
[Black "Leiva, Gianmarco"]
[WhiteFideId "14118610"]
[BlackFideId "3804399"]
[WhiteElo "2157"]
[BlackElo "2323"]
[Result "1-0"]
[Round "02"]
[TimeControl "180+1"]
[Date "2022.05.03"]
[WhiteClock "0:00:06"]
[BlackClock "0:00:08"]

1. d4 {[%clk 0:03:00]}  Nf6 {[%clk 0:03:00]} 2. c4 {[%clk 0:03:00]}  e6 {[%clk 0:03:01]} 3. Nc3 {[%clk 0:03:00]}  Bb4 {[%clk 0:03:01]} 4. e3 {[%clk 0:03:01]}  O-O {[%clk 0:03:02]} 5. Bd2 {[%clk 0:03:01]}  d5 {[%clk 0:03:00]} 6. Nf3 {[%clk 0:03:00]}  b6 {[%clk 0:03:00]} 7. cxd5 {[%clk 0:03:00]}  exd5 {[%clk 0:03:00]} 8. Rc1 {[%clk 0:03:00]}  a6 {[%clk 0:02:59]} 9. Bd3 {[%clk 0:03:00]}  Bb7 {[%clk 0:02:59]} 10. O-O {[%clk 0:03:00]}  Nbd7 {[%clk 0:02:59]} 11. Ne5 {[%clk 0:03:00]}  Bd6 {[%clk 0:02:58]} 12. f4 {[%clk 0:03:00]}  c5 {[%clk 0:02:53]} 13. Be1 {[%clk 0:02:50]}  Ne4 {[%clk 0:02:45]} 14. Bxe4 {[%clk 0:02:14]}  dxe4 {[%clk 0:02:45]} 15. Nxd7 {[%clk 0:02:15]}  Qxd7 {[%clk 0:02:45]} 16. dxc5 {[%clk 0:02:16]}  bxc5 {[%clk 0:02:44]} 17. Na4 {[%clk 0:02:17]}  Qe7 {[%clk 0:02:20]} 18. Bc3 {[%clk 0:01:54]}  Bc6 {[%clk 0:02:03]} 19. Nb6 {[%clk 0:01:47]}  Rad8 {[%clk 0:02:02]} 20. Qg4 {[%clk 0:01:26]}  f5 {[%clk 0:01:24]} 21. Qe2 {[%clk 0:01:26]}  Bc7 {[%clk 0:01:18]} 22. Qxa6 {[%clk 0:01:14]}  Kh8 {[%clk 0:01:10]} 23. Nc4 {[%clk 0:00:56]}  Qe8 {[%clk 0:00:25]} 24. Qa7 {[%clk 0:00:36]}  Rf7 {[%clk 0:00:25]} 25. Qxc5 {[%clk 0:00:35]}  Rd5 {[%clk 0:00:23]} 26. Qb4 {[%clk 0:00:29]}  Rb5 {[%clk 0:00:22]} 27. Nd6 {[%clk 0:00:19]}  Bxd6 {[%clk 0:00:08]} 28. Qxd6 {[%clk 0:00:20]}  Rd5 {[%clk 0:00:05]} 29. Qh6 {[%clk 0:00:15]}  Bb5 {[%clk 0:00:03]} 30. Rfd1 {[%clk 0:00:13]}  Bd3 {[%clk 0:00:03]} 31. a3 {[%clk 0:00:10]}  Rdd7 {[%clk 0:00:02]} 32. Qh4 {[%clk 0:00:10]}  Kg8 {[%clk 0:00:02]} 33. Qg5 {[%clk 0:00:11]}  Rd6 {[%clk 0:00:02]} 34. Be5 {[%clk 0:00:08]}  Rg6 {[%clk 0:00:01]} 35. Qh4 {[%clk 0:00:09]}  h6 {[%clk 0:00:01]} 36. Rc3 {[%clk 0:00:07]}  Kh7 {[%clk 0:00:01]} 37. Rdc1 {[%clk 0:00:08]}  Rg4 {[%clk 0:00:02]} 38. Qf2 {[%clk 0:00:08]}  Rd7 {[%clk 0:00:02]} 39. h3 {[%clk 0:00:08]}  Rg6 {[%clk 0:00:02]} 40. Rc8 {[%clk 0:00:09]}  Qf7 {[%clk 0:00:03]} 41. R1c7 {[%clk 0:00:08]}  Bb5 {[%clk 0:00:02]} 42. Qc2 {[%clk 0:00:05]}  Rb6 {[%clk 0:00:02]} 43. Rxd7 {[%clk 0:00:05]}  Bxd7 {[%clk 0:00:02]} 44. Rc7 {[%clk 0:00:06]}  Qd5 {[%clk 0:00:03]} 45. Qc3 {[%clk 0:00:06]}  Rb3 {[%clk 0:00:03]} 46. Qd4 {[%clk 0:00:06]}  Qxd4 {[%clk 0:00:01]} 47. Bxd4 {[%clk 0:00:07]}  Rd3 {[%clk 0:00:01]} 48. Rxd7 {[%clk 0:00:07]}  Kg6 {[%clk 0:00:01]} 49. Rxg7+ {[%clk 0:00:07]}  Kh5 {[%clk 0:00:02]} 50. g4+ {[%clk 0:00:07]}  Kh4 {[%clk 0:00:02]} 51. gxf5 {[%clk 0:00:05]}  h5 {[%clk 0:00:03]} 52. f6 {[%clk 0:00:06]}  Rd1+ {[%clk 0:00:02]} 53. Kf2 {[%clk 0:00:04]}  Rd2+ {[%clk 0:00:02]} 54. Ke1 {[%clk 0:00:05]}  Rh2 {[%clk 0:00:02]} 55. Re7 {[%clk 0:00:03]}  Rh1+ {[%clk 0:00:03]} 56. Kd2 {[%clk 0:00:03]}  Rh2+ {[%clk 0:00:04]} 57. Kc3 {[%clk 0:00:04]}  Re2 {[%clk 0:00:04]} 58. Re6 {[%clk 0:00:04]}  Rxe3+ {[%clk 0:00:05]} 59. Bxe3 {[%clk 0:00:04]}  Kg3 {[%clk 0:00:06]} 60. f7 {[%clk 0:00:05]}  Kf3 {[%clk 0:00:07]} 61. f8=Q {[%clk 0:00:06]}  Kxe3 {[%clk 0:00:08]} 62. Rxe4+ {[%clk 0:00:06]} 1-0


[Site "https://www.chess.com"]

[Event "Titled Tuesday Blitz May 03 Late 2022"]
[White "Wagner, Dennis"]
[Black "Donchenko, Anatoly"]
[WhiteFideId "24650684"]
[BlackFideId "4106091"]
[WhiteElo "2355"]
[BlackElo "2339"]
[Result "1-0"]
[Round "02"]
[TimeControl "180+1"]
[Date "2022.05.03"]
[WhiteClock "0:00:58"]
[BlackClock "0:00:50"]

1. e4 {[%clk 0:03:00]}  c5 {[%clk 0:02:58]} 2. Nf3 {[%clk 0:02:59]}  d6 {[%clk 0:02:57]} 3. d4 {[%clk 0:02:59]}  cxd4 {[%clk 0:02:57]} 4. Nxd4 {[%clk 0:03:00]}  Nf6 {[%clk 0:02:56]} 5. Nc3 {[%clk 0:03:01]}  a6 {[%clk 0:02:56]} 6. Bg5 {[%clk 0:03:02]}  Nbd7 {[%clk 0:02:55]} 7. f4 {[%clk 0:02:59]}  Qc7 {[%clk 0:02:54]} 8. Qf3 {[%clk 0:02:59]}  h6 {[%clk 0:02:54]} 9. Bxf6 {[%clk 0:02:58]}  Nxf6 {[%clk 0:02:53]} 10. f5 {[%clk 0:02:59]}  Rg8 {[%clk 0:02:52]} 11. O-O-O {[%clk 0:02:58]}  g5 {[%clk 0:02:51]} 12. Kb1 {[%clk 0:02:51]}  Bd7 {[%clk 0:02:50]} 13. Be2 {[%clk 0:02:40]}  Bg7 {[%clk 0:02:49]} 14. Rhe1 {[%clk 0:02:40]}  Bc6 {[%clk 0:02:42]} 15. Qe3 {[%clk 0:02:33]}  Nd7 {[%clk 0:02:40]} 16. Bh5 {[%clk 0:02:31]}  Ne5 {[%clk 0:02:37]} 17. Ne6 {[%clk 0:02:28]}  Qa5 {[%clk 0:02:26]} 18. Nd5 {[%clk 0:02:17]}  Bxd5 {[%clk 0:02:22]} 19. Rxd5 {[%clk 0:02:16]}  Qb4 {[%clk 0:02:13]} 20. a3 {[%clk 0:01:31]}  Qxb2+ {[%clk 0:02:05]} 21. Kxb2 {[%clk 0:01:29]}  Nc4+ {[%clk 0:02:06]} 22. Ka2 {[%clk 0:01:29]}  Nxe3 {[%clk 0:02:05]} 23. Rxe3 {[%clk 0:01:23]}  Rc8 {[%clk 0:01:57]} 24. Nxg7+ {[%clk 0:01:21]}  Rxg7 {[%clk 0:01:57]} 25. Kb2 {[%clk 0:01:22]}  Kd7 {[%clk 0:01:56]} 26. e5 {[%clk 0:01:20]}  g4 {[%clk 0:01:48]} 27. f6 {[%clk 0:01:07]}  Rg5 {[%clk 0:01:41]} 28. Bxf7 {[%clk 0:01:07]}  Rf8 {[%clk 0:01:34]} 29. fxe7 {[%clk 0:01:03]}  Rxf7 {[%clk 0:01:31]} 30. e6+ {[%clk 0:01:03]}  Kc6 {[%clk 0:01:24]} 31. exf7 {[%clk 0:01:02]}  Kd7 {[%clk 0:00:57]} 32. e8=Q+ {[%clk 0:00:59]}  Kc7 {[%clk 0:00:57]} 33. Rc3+ {[%clk 0:01:00]}  Kb6 {[%clk 0:00:53]} 34. Rxd6+ {[%clk 0:01:00]}  Ka5 {[%clk 0:00:52]} 35. Qd8+ {[%clk 0:00:59]}  Kb5 {[%clk 0:00:51]} 36. Qb6+ {[%clk 0:00:57]}  Ka4 {[%clk 0:00:50]} 37. Qb4# {[%clk 0:00:58]} 1-0


[Site "https://www.chess.com"]

[Event "Titled Tuesday Blitz May 03 Late 2022"]
[White "Wieczorek, Oskar"]
[Black "Zherebtsova, Alexandra"]
[WhiteFideId "1133950"]
[BlackFideId "24129518"]
[WhiteElo "2319"]
[BlackElo "2025"]
[Result "1-0"]
[Round "02"]
[TimeControl "180+1"]
[Date "2022.05.03"]
[WhiteClock "0:01:28"]
[BlackClock "0:00:11"]

1. e4 {[%clk 0:03:00]}  e5 {[%clk 0:02:58]} 2. Nf3 {[%clk 0:03:01]}  Nc6 {[%clk 0:02:57]} 3. Nc3 {[%clk 0:03:01]}  Nf6 {[%clk 0:02:56]} 4. a3 {[%clk 0:03:02]}  a6 {[%clk 0:02:50]} 5. d4 {[%clk 0:03:02]}  exd4 {[%clk 0:02:50]} 6. Nxd4 {[%clk 0:03:03]}  Bc5 {[%clk 0:02:48]} 7. Be3 {[%clk 0:03:03]}  Ba7 {[%clk 0:02:32]} 8. Nxc6 {[%clk 0:03:02]}  bxc6 {[%clk 0:02:27]} 9. Bxa7 {[%clk 0:02:55]}  Rxa7 {[%clk 0:02:27]} 10. Qd4 {[%clk 0:02:53]}  Rb7 {[%clk 0:02:06]} 11. e5 {[%clk 0:02:54]}  Qe7 {[%clk 0:01:59]} 12. O-O-O {[%clk 0:02:50]}  Ng8 {[%clk 0:01:54]} 13. Bxa6 {[%clk 0:02:49]}  Rb8 {[%clk 0:01:53]} 14. Bxc8 {[%clk 0:02:48]}  Rxc8 {[%clk 0:01:53]} 15. Ne4 {[%clk 0:02:20]}  Nh6 {[%clk 0:01:51]} 16. Nc5 {[%clk 0:02:20]}  Rd8 {[%clk 0:01:49]} 17. g4 {[%clk 0:02:19]}  Qg5+ {[%clk 0:01:48]} 18. Kb1 {[%clk 0:02:19]}  Qxg4 {[%clk 0:01:46]} 19. Qe3 {[%clk 0:02:15]}  Qf5 {[%clk 0:01:29]} 20. Rhg1 {[%clk 0:02:07]}  Ng4 {[%clk 0:01:08]} 21. Qg3 {[%clk 0:02:05]}  h5 {[%clk 0:01:01]} 22. h3 {[%clk 0:01:59]}  Nxe5 {[%clk 0:00:59]} 23. Qxg7 {[%clk 0:01:42]}  Rh7 {[%clk 0:00:37]} 24. Qg3 {[%clk 0:01:42]}  d6 {[%clk 0:00:28]} 25. Nd3 {[%clk 0:01:39]}  Nxd3 {[%clk 0:00:19]} 26. Rxd3 {[%clk 0:01:40]}  Kd7 {[%clk 0:00:19]} 27. Re1 {[%clk 0:01:40]}  Rh6 {[%clk 0:00:17]} 28. Rde3 {[%clk 0:01:38]}  Re6 {[%clk 0:00:17]} 29. Rxe6 {[%clk 0:01:32]}  fxe6 {[%clk 0:00:17]} 30. Qg7+ {[%clk 0:01:33]}  Kc8 {[%clk 0:00:17]} 31. Qe7 {[%clk 0:01:33]}  Qxf2 {[%clk 0:00:16]} 32. Qxe6+ {[%clk 0:01:33]}  Kb8 {[%clk 0:00:16]} 33. Qb3+ {[%clk 0:01:34]}  Kc8 {[%clk 0:00:16]} 34. Re7 {[%clk 0:01:33]}  Qf1+ {[%clk 0:00:15]} 35. Ka2 {[%clk 0:01:33]}  Qb5 {[%clk 0:00:15]} 36. Qf7 {[%clk 0:01:31]}  Qb6 {[%clk 0:00:14]} 37. Qxh5 {[%clk 0:01:31]}  Kb7 {[%clk 0:00:14]} 38. Re3 {[%clk 0:01:30]}  Kc8 {[%clk 0:00:11]} 39. Qf5+ {[%clk 0:01:28]} 1-0


[Site "https://www.chess.com"]

[Event "Titled Tuesday Blitz May 03 Late 2022"]
[White "Yedidia, Daniel"]
[Black "Shimanov, Aleksandr"]
[WhiteFideId "30905907"]
[BlackFideId "4198603"]
[WhiteElo "2572"]
[BlackElo "2636"]
[Result "0-1"]
[Round "02"]
[TimeControl "180+1"]
[Date "2022.05.03"]
[WhiteClock "0:00:03"]
[BlackClock "0:00:29"]

1. d4 {[%clk 0:03:00]}  Nf6 {[%clk 0:02:57]} 2. c4 {[%clk 0:03:00]}  g6 {[%clk 0:02:58]} 3. Nc3 {[%clk 0:03:00]}  Bg7 {[%clk 0:02:59]} 4. e4 {[%clk 0:03:00]}  O-O {[%clk 0:02:59]} 5. Nf3 {[%clk 0:03:01]}  d6 {[%clk 0:03:00]} 6. Be2 {[%clk 0:03:01]}  Na6 {[%clk 0:03:00]} 7. O-O {[%clk 0:03:01]}  e5 {[%clk 0:03:01]} 8. Be3 {[%clk 0:02:57]}  c6 {[%clk 0:03:00]} 9. Qd2 {[%clk 0:02:54]}  Qe8 {[%clk 0:02:16]} 10. d5 {[%clk 0:02:39]}  c5 {[%clk 0:02:11]} 11. a3 {[%clk 0:02:35]}  Ng4 {[%clk 0:02:10]} 12. Bg5 {[%clk 0:02:32]}  f6 {[%clk 0:02:10]} 13. Bh4 {[%clk 0:02:30]}  h5 {[%clk 0:02:10]} 14. Ne1 {[%clk 0:02:09]}  Nh6 {[%clk 0:02:09]} 15. f3 {[%clk 0:02:09]}  Nf7 {[%clk 0:02:07]} 16. Nd3 {[%clk 0:02:07]}  Bh6 {[%clk 0:02:05]} 17. Qc2 {[%clk 0:02:02]}  Be3+ {[%clk 0:02:03]} 18. Bf2 {[%clk 0:02:02]}  Bxf2+ {[%clk 0:01:56]} 19. Rxf2 {[%clk 0:02:00]}  Bd7 {[%clk 0:01:56]} 20. b4 {[%clk 0:01:59]}  b6 {[%clk 0:01:54]} 21. Qd2 {[%clk 0:01:55]}  Kg7 {[%clk 0:01:53]} 22. Raf1 {[%clk 0:01:48]}  Qe7 {[%clk 0:01:52]} 23. Qe3 {[%clk 0:01:33]}  Rae8 {[%clk 0:01:50]} 24. f4 {[%clk 0:01:33]}  exf4 {[%clk 0:01:20]} 25. Nxf4 {[%clk 0:01:32]}  Ne5 {[%clk 0:01:21]} 26. b5 {[%clk 0:01:19]}  Nc7 {[%clk 0:01:19]} 27. Bxh5 {[%clk 0:01:07]}  g5 {[%clk 0:00:57]} 28. Ne6+ {[%clk 0:00:35]}  Nxe6 {[%clk 0:00:51]} 29. dxe6 {[%clk 0:00:36]}  Bxe6 {[%clk 0:00:51]} 30. Bxe8 {[%clk 0:00:35]}  Qxe8 {[%clk 0:00:52]} 31. Qd2 {[%clk 0:00:23]}  Nxc4 {[%clk 0:00:51]} 32. Qc1 {[%clk 0:00:14]}  Ne5 {[%clk 0:00:50]} 33. h3 {[%clk 0:00:12]}  Nd3 {[%clk 0:00:49]} 34. Qe3 {[%clk 0:00:11]}  Nxf2 {[%clk 0:00:49]} 35. Rxf2 {[%clk 0:00:11]}  Qe7 {[%clk 0:00:50]} 36. Qg3 {[%clk 0:00:09]}  Rh8 {[%clk 0:00:48]} 37. Rd2 {[%clk 0:00:09]}  Bf7 {[%clk 0:00:41]} 38. Rxd6 {[%clk 0:00:08]}  Rd8 {[%clk 0:00:40]} 39. Rxd8 {[%clk 0:00:07]}  Qxd8 {[%clk 0:00:41]} 40. e5 {[%clk 0:00:06]}  Qd4+ {[%clk 0:00:41]} 41. Kh1 {[%clk 0:00:06]}  Qxe5 {[%clk 0:00:41]} 42. Qxe5 {[%clk 0:00:06]}  fxe5 {[%clk 0:00:42]} 43. Kg1 {[%clk 0:00:07]}  Bc4 {[%clk 0:00:33]} 44. Kf2 {[%clk 0:00:06]}  Kg6 {[%clk 0:00:34]} 45. Ke3 {[%clk 0:00:07]}  Kf5 {[%clk 0:00:34]} 46. g3 {[%clk 0:00:04]}  Bf1 {[%clk 0:00:30]} 47. g4+ {[%clk 0:00:02]}  Kg6 {[%clk 0:00:29]} 48. Ke4 {[%clk 0:00:02]}  Bxh3 {[%clk 0:00:29]} 49. Kxe5 {[%clk 0:00:03]}  Bxg4 {[%clk 0:00:29]} 50. Kd6 {[%clk 0:00:03]}  Bf3 {[%clk 0:00:29]} 51. Kc7 {[%clk 0:00:03]}  g4 {[%clk 0:00:30]} 52. Nd1 {[%clk 0:00:03]}  Bxd1 {[%clk 0:00:29]} 0-1


[Site "https://www.chess.com"]

[Event "Titled Tuesday Blitz May 03 Late 2022"]
[White "Yurovskykh, Oleksandr"]
[Black "Zhigalko, Sergei"]
[WhiteFideId "14134020"]
[BlackFideId "13502956"]
[WhiteElo "2292"]
[BlackElo "2662"]
[Result "0-1"]
[Round "02"]
[TimeControl "180+1"]
[Date "2022.05.03"]
[WhiteClock "0:00:01"]
[BlackClock "0:00:43"]

1. d4 {[%clk 0:03:00]}  Nf6 {[%clk 0:02:48]} 2. Nf3 {[%clk 0:03:00]}  e6 {[%clk 0:02:48]} 3. c4 {[%clk 0:02:59]}  b6 {[%clk 0:02:47]} 4. Bg5 {[%clk 0:02:46]}  h6 {[%clk 0:02:44]} 5. Bh4 {[%clk 0:02:46]}  Bb7 {[%clk 0:02:43]} 6. Nc3 {[%clk 0:02:44]}  Bb4 {[%clk 0:02:36]} 7. Rc1 {[%clk 0:02:32]}  g5 {[%clk 0:02:35]} 8. Bg3 {[%clk 0:02:30]}  Ne4 {[%clk 0:02:36]} 9. e3 {[%clk 0:02:13]}  Bxc3+ {[%clk 0:02:34]} 10. bxc3 {[%clk 0:02:14]}  d6 {[%clk 0:02:35]} 11. Bd3 {[%clk 0:02:10]}  Nd7 {[%clk 0:02:32]} 12. Qc2 {[%clk 0:02:05]}  f5 {[%clk 0:02:32]} 13. O-O {[%clk 0:01:18]}  Qe7 {[%clk 0:02:22]} 14. Nd2 {[%clk 0:01:15]}  Ndf6 {[%clk 0:02:04]} 15. Nxe4 {[%clk 0:01:13]}  Nxe4 {[%clk 0:02:02]} 16. a4 {[%clk 0:01:01]}  a5 {[%clk 0:02:02]} 17. Qb2 {[%clk 0:00:50]}  O-O {[%clk 0:01:55]} 18. Bxe4 {[%clk 0:00:25]}  Bxe4 {[%clk 0:01:54]} 19. h3 {[%clk 0:00:23]}  Bd3 {[%clk 0:01:51]} 20. Rfd1 {[%clk 0:00:18]}  Bxc4 {[%clk 0:01:51]} 21. Qc2 {[%clk 0:00:16]}  Rae8 {[%clk 0:01:47]} 22. e4 {[%clk 0:00:11]}  f4 {[%clk 0:01:35]} 23. Bh2 {[%clk 0:00:11]}  f3 {[%clk 0:01:35]} 24. d5 {[%clk 0:00:09]}  fxg2 {[%clk 0:01:30]} 25. dxe6 {[%clk 0:00:05]}  Qxe6 {[%clk 0:01:27]} 26. Rd4 {[%clk 0:00:05]}  Rf3 {[%clk 0:01:20]} 27. Kxg2 {[%clk 0:00:04]}  Qxh3+ {[%clk 0:01:09]} 28. Kg1 {[%clk 0:00:05]}  Qe6 {[%clk 0:00:58]} 29. Bg3 {[%clk 0:00:04]}  Ref8 {[%clk 0:00:56]} 30. Kg2 {[%clk 0:00:03]}  h5 {[%clk 0:00:55]} 31. Rh1 {[%clk 0:00:02]}  h4 {[%clk 0:00:55]} 32. Bxh4 {[%clk 0:00:02]}  gxh4 {[%clk 0:00:48]} 33. e5 {[%clk 0:00:02]}  Rxf2+ {[%clk 0:00:42]} 34. Qxf2 {[%clk 0:00:01]}  Bd5+ {[%clk 0:00:43]} 0-1


[Site "https://www.chess.com"]

[Event "Titled Tuesday Blitz May 03 Late 2022"]
[White "Zhou, Qiyu"]
[Black "Adewumi, Tanitoluwa"]
[WhiteFideId "505161"]
[BlackFideId "30966396"]
[WhiteElo "1925"]
[BlackElo "2522"]
[Result "0-1"]
[Round "02"]
[TimeControl "180+1"]
[Date "2022.05.03"]
[WhiteClock "0:00:09"]
[BlackClock "0:01:29"]

1. e4 {[%clk 0:03:00]}  e5 {[%clk 0:02:57]} 2. Nf3 {[%clk 0:03:00]}  Nc6 {[%clk 0:02:51]} 3. Bb5 {[%clk 0:03:00]}  a6 {[%clk 0:02:48]} 4. Ba4 {[%clk 0:03:00]}  Nf6 {[%clk 0:02:47]} 5. O-O {[%clk 0:03:00]}  b5 {[%clk 0:02:35]} 6. Bb3 {[%clk 0:02:59]}  d6 {[%clk 0:02:36]} 7. c3 {[%clk 0:02:52]}  Be7 {[%clk 0:02:34]} 8. Re1 {[%clk 0:02:52]}  O-O {[%clk 0:02:34]} 9. h3 {[%clk 0:02:52]}  Bb7 {[%clk 0:02:34]} 10. d4 {[%clk 0:02:52]}  Na5 {[%clk 0:02:34]} 11. Bc2 {[%clk 0:02:51]}  c5 {[%clk 0:02:31]} 12. d5 {[%clk 0:02:50]}  Nc4 {[%clk 0:02:28]} 13. b3 {[%clk 0:02:47]}  Nb6 {[%clk 0:02:29]} 14. Nbd2 {[%clk 0:02:47]}  Kh8 {[%clk 0:02:27]} 15. Nf1 {[%clk 0:02:47]}  Ng8 {[%clk 0:02:27]} 16. g4 {[%clk 0:02:46]}  Bc8 {[%clk 0:02:20]} 17. Ng3 {[%clk 0:02:46]}  Bd7 {[%clk 0:02:21]} 18. Kg2 {[%clk 0:02:43]}  a5 {[%clk 0:02:21]} 19. Nf5 {[%clk 0:02:07]}  a4 {[%clk 0:02:16]} 20. Be3 {[%clk 0:01:56]}  a3 {[%clk 0:02:14]} 21. Rh1 {[%clk 0:01:52]}  g6 {[%clk 0:01:55]} 22. Nxe7 {[%clk 0:01:32]}  Qxe7 {[%clk 0:01:56]} 23. Qd2 {[%clk 0:01:30]}  f5 {[%clk 0:01:53]} 24. Bg5 {[%clk 0:01:19]}  Qf7 {[%clk 0:01:53]} 25. gxf5 {[%clk 0:01:03]}  gxf5 {[%clk 0:01:43]} 26. Rag1 {[%clk 0:01:00]}  fxe4 {[%clk 0:01:39]} 27. Bxe4 {[%clk 0:01:01]}  Bf5 {[%clk 0:01:39]} 28. Bxf5 {[%clk 0:00:45]}  Qxf5 {[%clk 0:01:40]} 29. Nh4 {[%clk 0:00:44]}  Qe4+ {[%clk 0:01:36]} 30. f3 {[%clk 0:00:41]}  Qxd5 {[%clk 0:01:36]} 31. Qxd5 {[%clk 0:00:35]}  Nxd5 {[%clk 0:01:37]} 32. Kf2 {[%clk 0:00:31]}  Nxc3 {[%clk 0:01:33]} 33. Ke3 {[%clk 0:00:23]}  Nxa2 {[%clk 0:01:31]} 34. Rd1 {[%clk 0:00:09]}  Nb4 {[%clk 0:01:29]} 35. Rxd6 {[%clk 0:00:09]}  a2 {[%clk 0:01:29]} 0-1


[Site "https://www.chess.com"]

[Event "Titled Tuesday Blitz May 03 Late 2022"]
[White "Zhurbinsky, David"]
[Black "Jones, Gawain C B"]
[WhiteFideId "2072904"]
[BlackFideId "409561"]
[WhiteElo "2563"]
[BlackElo "2657"]
[Result "0-1"]
[Round "02"]
[TimeControl "180+1"]
[Date "2022.05.03"]
[WhiteClock "0:01:42"]
[BlackClock "0:02:20"]

1. e4 {[%clk 0:03:00]}  e5 {[%clk 0:02:54]} 2. Nf3 {[%clk 0:03:00]}  Nc6 {[%clk 0:02:54]} 3. Bb5 {[%clk 0:03:01]}  a6 {[%clk 0:02:52]} 4. Ba4 {[%clk 0:03:01]}  Nf6 {[%clk 0:02:51]} 5. O-O {[%clk 0:03:02]}  d6 {[%clk 0:02:51]} 6. Re1 {[%clk 0:03:00]}  Bd7 {[%clk 0:02:51]} 7. c3 {[%clk 0:03:00]}  g6 {[%clk 0:02:51]} 8. d4 {[%clk 0:03:01]}  Bg7 {[%clk 0:02:52]} 9. Bg5 {[%clk 0:02:59]}  h6 {[%clk 0:02:52]} 10. Bh4 {[%clk 0:02:57]}  O-O {[%clk 0:02:51]} 11. Nbd2 {[%clk 0:02:53]}  Qe8 {[%clk 0:02:50]} 12. dxe5 {[%clk 0:02:29]}  Nxe5 {[%clk 0:02:43]} 13. Bxd7 {[%clk 0:02:25]}  Nfxd7 {[%clk 0:02:43]} 14. Nxe5 {[%clk 0:02:23]}  Qxe5 {[%clk 0:02:39]} 15. Bg3 {[%clk 0:02:18]}  Qb5 {[%clk 0:02:35]} 16. Qc2 {[%clk 0:02:15]}  Rae8 {[%clk 0:02:34]} 17. Rad1 {[%clk 0:02:14]}  Ne5 {[%clk 0:02:28]} 18. Nb3 {[%clk 0:01:52]}  Nc4 {[%clk 0:02:20]} 19. Rd5 {[%clk 0:01:42]}  Qxd5 {[%clk 0:02:20]} 0-1


[Site "https://www.chess.com"]

[Event "Titled Tuesday Blitz May 03 Late 2022"]
[White "Al-Tarboush, Ward"]
[Black "Babazada, Khazar"]
[WhiteFideId "7601450"]
[BlackFideId "13413554"]
[WhiteElo "2276"]
[BlackElo "2406"]
[Result "0-1"]
[Round "03"]
[TimeControl "180+1"]
[Date "2022.05.03"]
[WhiteClock "0:00:03"]
[BlackClock "0:01:08"]

1. e4 {[%clk 0:03:00]}  Nf6 {[%clk 0:03:00]} 2. e5 {[%clk 0:03:00]}  Nd5 {[%clk 0:03:00]} 3. d4 {[%clk 0:03:01]}  Nb6 {[%clk 0:03:01]} 4. Nf3 {[%clk 0:02:59]}  d6 {[%clk 0:03:02]} 5. Be2 {[%clk 0:02:59]}  g6 {[%clk 0:03:02]} 6. O-O {[%clk 0:02:59]}  Bg7 {[%clk 0:03:02]} 7. c4 {[%clk 0:02:56]}  O-O {[%clk 0:03:03]} 8. Nc3 {[%clk 0:02:56]}  Nc6 {[%clk 0:03:03]} 9. exd6 {[%clk 0:02:54]}  cxd6 {[%clk 0:03:03]} 10. h3 {[%clk 0:02:53]}  Bf5 {[%clk 0:03:02]} 11. Be3 {[%clk 0:02:53]}  d5 {[%clk 0:03:02]} 12. c5 {[%clk 0:02:52]}  Nc4 {[%clk 0:03:02]} 13. Bxc4 {[%clk 0:02:46]}  dxc4 {[%clk 0:03:03]} 14. d5 {[%clk 0:02:38]}  Nb4 {[%clk 0:03:04]} 15. Bd4 {[%clk 0:01:58]}  Bd3 {[%clk 0:03:03]} 16. Bxg7 {[%clk 0:01:45]}  Kxg7 {[%clk 0:03:04]} 17. a3 {[%clk 0:01:39]}  Nxd5 {[%clk 0:03:01]} 18. Nxd5 {[%clk 0:01:32]}  Qxd5 {[%clk 0:03:02]} 19. Re1 {[%clk 0:01:05]}  Qxc5 {[%clk 0:03:01]} 20. Qd2 {[%clk 0:01:04]}  f6 {[%clk 0:02:48]} 21. Qc3 {[%clk 0:01:00]}  e5 {[%clk 0:02:47]} 22. Rad1 {[%clk 0:00:59]}  Rad8 {[%clk 0:02:46]} 23. Nd2 {[%clk 0:00:54]}  Qd4 {[%clk 0:02:44]} 24. Qb4 {[%clk 0:00:53]}  Bc2 {[%clk 0:02:39]} 25. Nf3 {[%clk 0:00:49]}  Qxd1 {[%clk 0:02:39]} 26. Rxd1 {[%clk 0:00:49]}  Rxd1+ {[%clk 0:02:40]} 27. Kh2 {[%clk 0:00:50]}  Be4 {[%clk 0:02:40]} 28. Qxc4 {[%clk 0:00:46]}  Bxf3 {[%clk 0:02:38]} 29. gxf3 {[%clk 0:00:46]}  Rd7 {[%clk 0:02:37]} 30. Qe6 {[%clk 0:00:44]}  Rff7 {[%clk 0:02:35]} 31. Kg2 {[%clk 0:00:44]}  Rfe7 {[%clk 0:02:35]} 32. Qb3 {[%clk 0:00:44]}  Rd4 {[%clk 0:02:35]} 33. Qc3 {[%clk 0:00:42]}  Red7 {[%clk 0:02:35]} 34. Qc5 {[%clk 0:00:40]}  b6 {[%clk 0:02:35]} 35. Qc6 {[%clk 0:00:40]}  Rd2 {[%clk 0:02:35]} 36. b4 {[%clk 0:00:39]}  Kh6 {[%clk 0:02:35]} 37. Qxf6 {[%clk 0:00:37]}  R2d6 {[%clk 0:02:21]} 38. Qf8+ {[%clk 0:00:35]}  Kh5 {[%clk 0:02:20]} 39. Kg3 {[%clk 0:00:27]}  Re6 {[%clk 0:01:58]} 40. a4 {[%clk 0:00:22]}  Ree7 {[%clk 0:01:47]} 41. Qf6 {[%clk 0:00:18]}  Kh6 {[%clk 0:01:36]} 42. a5 {[%clk 0:00:18]}  bxa5 {[%clk 0:01:34]} 43. bxa5 {[%clk 0:00:19]}  Rf7 {[%clk 0:01:31]} 44. Qxe5 {[%clk 0:00:18]}  Rf5 {[%clk 0:01:31]} 45. Qc3 {[%clk 0:00:12]}  Rdf7 {[%clk 0:01:30]} 46. Kg2 {[%clk 0:00:09]}  Kh5 {[%clk 0:01:24]} 47. Qd4 {[%clk 0:00:04]}  Rf4 {[%clk 0:01:16]} 48. Qe5+ {[%clk 0:00:04]}  g5 {[%clk 0:01:14]} 49. Qe6 {[%clk 0:00:03]}  h6 {[%clk 0:01:11]} 50. Qe8 {[%clk 0:00:03]}  Rxf3 {[%clk 0:01:09]} 51. Qe2 {[%clk 0:00:04]}  Kh4 {[%clk 0:01:09]} 52. Qe4+ {[%clk 0:00:04]}  R3f4 {[%clk 0:01:07]} 53. Qe3 {[%clk 0:00:03]}  Rxf2+ {[%clk 0:01:07]} 54. Kg1 {[%clk 0:00:03]}  Rf1+ {[%clk 0:01:07]} 55. Kg2 {[%clk 0:00:03]}  R7f2+ {[%clk 0:01:08]} 0-1


[Site "https://www.chess.com"]

[Event "Titled Tuesday Blitz May 03 Late 2022"]
[White "Andreikin, Dmitry"]
[Black "Sebag, Marie"]
[WhiteFideId "4158814"]
[BlackFideId "617822"]
[WhiteElo "2736"]
[BlackElo "2440"]
[Result "1-0"]
[Round "03"]
[TimeControl "180+1"]
[Date "2022.05.03"]
[WhiteClock "0:02:17"]
[BlackClock "0:01:31"]

1. e4 {[%clk 0:03:00]}  c5 {[%clk 0:02:58]} 2. Nf3 {[%clk 0:03:00]}  d6 {[%clk 0:02:56]} 3. Nc3 {[%clk 0:02:59]}  a6 {[%clk 0:02:49]} 4. e5 {[%clk 0:02:55]}  dxe5 {[%clk 0:02:47]} 5. Nxe5 {[%clk 0:02:56]}  Nd7 {[%clk 0:02:47]} 6. d4 {[%clk 0:02:49]}  cxd4 {[%clk 0:02:30]} 7. Qxd4 {[%clk 0:02:48]}  Nxe5 {[%clk 0:02:30]} 8. Qxe5 {[%clk 0:02:48]}  Nf6 {[%clk 0:02:30]} 9. Bf4 {[%clk 0:02:43]}  e6 {[%clk 0:02:28]} 10. Bd3 {[%clk 0:02:39]}  Nd7 {[%clk 0:02:04]} 11. Qe2 {[%clk 0:02:25]}  Bb4 {[%clk 0:02:03]} 12. O-O {[%clk 0:02:20]}  O-O {[%clk 0:01:51]} 13. Qe4 {[%clk 0:02:18]}  Nf6 {[%clk 0:01:31]} 14. Qxb4 {[%clk 0:02:17]} 1-0


[Site "https://www.chess.com"]